bitfinex/quotes_ETHUSD_20220101
["timestamp","ask_amount","ask_price","bid_price","bid_amount"]
[1641062238439,0.00284212,3745.4,3745.3,18.40501826]
[1641062238643,6.15,3745.6,3745.5,15.6]
[1641062238844,6.15,3745.6,3745.5,16.65028]
[1641062239042,0.81319685,3745.6,3745.5,18.25028]
[1641062239292,5.85822569,3746.4,3745.5,18.25028]
[1641062239293,5.85822569,3746.4,3745.9,2.66894]
[1641062239491,5.85822569,3746.4,3746.0,0.383]
[1641062239696,0.00397896,3746.3,3746.0,0.383]
[1641062240093,0.00341054,3746.2,3746.0,1.05024]
[1641062240392,4.55330337,3746.4,3746.1,0.3]
[1641062240595,3.03442429,3746.6,3746.5,0.87908678]
[1641062240790,3.03442429,3746.6,3746.5,17.46208678]
[1641062241394,1.78684138,3747.3,3746.5,17.46208678]
[1641062241395,3.03442429,3747.2,3746.5,17.46208678]
[1641062241592,3.03442429,3747.2,3746.8,1.3343394]
[1641062241795,0.00795793,3747.0,3746.8,1.3343394]
[1641062242193,0.0073895,3746.9,3746.8,1.3343394]
[1641062243144,3.04181379,3746.9,3746.8,1.3343394]
[1641062243947,0.0073895,3746.9,3746.8,1.3343394]
[1641062244446,3.04181379,3746.9,3746.8,1.3343394]
[1641062244845,0.0073895,3746.9,3746.8,1.3343394]
[1641062245049,2.7073895,3746.9,3746.8,1.3343394]
[1641062245247,2.7073895,3746.9,3746.6,2.66866]
[1641062245447,2.7073895,3746.9,3746.6,1.33434]
[1641062245646,0.00682108,3746.8,3746.6,1.33434]
[1641062246047,2.99035579,3746.8,3746.6,1.33434]
[1641062246785,2.99035579,3746.8,3746.3,2.92971767]
[1641062247190,2.99035579,3746.8,3746.4,0.00170527]
[1641062250746,2.99035579,3746.8,3746.4,0.66900527]
[1641062250944,2.99035579,3746.8,3746.5,0.66726]
[1641062251140,2.99035579,3746.8,3746.5,0.66839685]
[1641062251339,2.7,3746.9,3746.5,0.66839685]
[1641062252141,2.7,3746.9,3746.5,1.33566685]
[1641062253146,2.7,3746.9,3746.5,0.66839685]
[1641062253547,2.7,3746.9,3746.5,0.00113685]
[1641062255594,1.30492232,3746.8,3746.5,0.00113685]
[1641062256396,4.00492232,3746.9,3746.3,0.0022737]
[1641062256997,1.30492232,3746.8,3746.3,0.0022737]
[1641062257196,1.30492232,3746.8,3746.3,1.00640143]
[1641062257802,4.00492232,3746.9,3746.3,1.00640143]
[1641062258647,1.30492232,3746.8,3746.3,1.00640143]
[1641062259148,4.00492232,3746.9,3746.3,0.0022737]
[1641062259353,1.30492232,3746.8,3746.4,0.66733]
[1641062259550,1.30492232,3746.8,3746.4,1.33463]
[1641062259751,1.30492232,3746.8,3746.5,0.00113685]
[1641062259952,4.00492232,3746.9,3746.5,0.00113685]
[1641062260351,4.00492232,3746.9,3746.5,0.92711501]
[1641062262097,2.7,3746.9,3746.5,0.92711501]
[1641062264805,4.00492232,3746.9,3746.5,0.92711501]
[1641062265004,4.00492232,3746.9,3746.7,0.66726]
[1641062265439,2.7,3746.9,3746.7,0.66726]
[1641062266446,2.7,3746.9,3746.7,1.3345011]
[1641062266647,3.03384219,3746.8,3746.7,1.3345011]
[1641062270789,2.7,3746.9,3746.7,1.3345011]
[1641062278005,2.7,3746.9,3746.6,1.33451]
[1641062278006,2.7,3746.9,3746.6,0.66725]
[1641062279009,3.03404088,3746.8,3746.6,0.66725]
[1641062279607,4.82088226,3746.8,3746.6,0.66725]
[1641062280210,3.03404088,3746.7,3746.6,0.66725]
[1641062280647,3.03404088,3746.7,3746.6,1.33456]
[1641062280847,4.48684138,3746.9,3746.6,0.66725]
[1641062280848,3.03404088,3746.8,3746.6,0.66725]
[1641062281251,3.03404088,3746.7,3746.6,0.66725]
[1641062281849,4.8882346,3746.9,3746.6,0.66725]
[1641062281850,3.03404088,3746.8,3746.6,0.66725]
[1641062285122,3.03404088,3746.8,3746.6,1.33458]
[1641062285923,4.82088226,3746.8,3746.6,0.66725]
[1641062286923,3.03404088,3746.7,3746.6,0.66725]
[1641062287726,3.03404088,3746.8,3746.6,0.66725]
[1641062288947,4.82088226,3746.8,3746.6,0.66725]
[1641062289550,3.03404088,3746.7,3746.6,0.66725]
[1641062290249,3.03404088,3746.7,3746.4,0.05352803]
[1641062291051,3.03404088,3746.7,3746.4,2.803e-05]
[1641062291348,7.17564175,3746.5,3745.5,0.66754]
[1641062291798,0.66755,3746.4,3745.6,0.00625266]
[1641062292195,5.69006976,3746.4,3745.6,0.00625266]
[1641062292395,4.35498976,3746.4,3745.6,0.00625266]
[1641062293001,3.03404088,3746.3,3745.6,0.00625266]
[1641062293198,3.03404088,3746.3,3745.6,0.67372266]
[1641062293400,3.03404088,3746.3,3745.8,0.6674281]
[1641062293798,3.03404088,3746.3,3745.9,0.00454739]
[1641062294200,3.03404088,3746.4,3745.9,0.00454739]
[1641062294402,3.03404088,3746.4,3745.7,0.00568424]
[1641062294601,0.69702453,3746.3,3745.7,0.00568424]
[1641062294801,3.03404088,3746.2,3745.7,0.00568424]
[1641062294998,3.03404088,3746.2,3745.5,0.00682109]
[1641062295200,3.03404088,3746.2,3745.3,0.89898326]
[1641062295201,3.03404088,3746.2,3745.4,0.00738951]
[1641062295454,3.03404088,3746.2,3745.6,0.6675]
[1641062295649,3.03404088,3746.2,3745.6,1.3349725]
[1641062295846,3.03404088,3746.2,3745.7,0.00568424]
[1641062296249,3.03404088,3746.2,3745.7,0.67314424]
[1641062296650,3.03404088,3746.2,3745.8,1.34001912]
[1641062296850,3.03404088,3746.2,3745.8,3.14576147]
[1641062297048,3.03404088,3746.2,3745.9,0.00454739]
[1641062297649,3.03404088,3746.2,3746.0,0.66736]
[1641062297849,3.03404088,3746.2,3746.1,2.54600707]
[1641062298053,3.03404088,3746.2,3746.1,2.54941762]
[1641062298652,5.9372,3746.9,3746.1,2.54941762]
[1641062298955,5.9372,3746.9,3746.7,0.9906509]
[1641062299202,2.7,3746.9,3746.7,0.9906509]
[1641062299403,3.03409842,3746.8,3746.7,0.9906509]
[1641062300003,3.03409842,3746.8,3746.6,1.334536]
[1641062300403,3.03409842,3746.8,3746.6,0.667266]
[1641062300606,3.03409842,3746.8,3746.2,0.00284212]
[1641062301205,4.36902842,3746.8,3746.2,0.00284212]
[1641062301408,4.36902842,3746.8,3745.9,2.84623207]
[1641062301409,3.03409842,3746.8,3745.9,2.84623207]
[1641062301606,3.03409842,3746.8,3746.3,0.667396]
[1641062302005,3.03409842,3746.8,3746.4,0.00170527]
[1641062302406,3.03409842,3746.8,3746.2,1.33466]
[1641062302608,3.03409842,3746.8,3746.4,0.66734]
[1641062303051,3.03409842,3746.8,3746.5,0.66843725]
[1641062303249,3.03409842,3746.8,3746.5,1.33577725]
[1641062303454,3.03409842,3746.8,3746.6,2.463687]
[1641062303648,3.03409842,3746.8,3746.6,3.798257]
[1641062304248,3.03409842,3746.8,3746.6,5.1327955]
[1641062304849,3.03409842,3746.8,3746.7,2.44262609]
[1641062305049,3.03409842,3746.8,3746.6,2.6691085]
[1641062305853,3.03409842,3746.8,3746.4,0.05396205]
[1641062306056,3.03409842,3746.8,3745.2,0.30340409]
[1641062306057,0.01299099,3746.5,3745.2,0.30340409]
[1641062306252,0.66762,3746.0,3745.2,0.30340409]
[1641062306453,0.01206358,3745.5,3745.3,0.00682108]
[1641062306905,0.67975358,3745.5,3745.3,0.00682108]
[1641062307110,0.69722901,3745.5,3745.3,0.00682108]
[1641062307704,0.69722901,3745.5,3744.5,0.01136847]
[1641062308305,3.03409842,3745.4,3744.7,0.66761]
[1641062308609,3.03409842,3745.4,3744.8,0.0096632]
[1641062309005,3.03409842,3745.4,3744.6,0.6676339]
[1641062309206,3.03409842,3745.4,3744.7,0.01023162]
[1641062309807,3.70175842,3745.4,3744.7,0.01023162]
[1641062310005,3.03409842,3745.4,3744.7,0.01023162]
[1641062310206,3.03409842,3745.4,3744.5,0.01136847]
[1641062310455,3.03409842,3745.3,3744.5,0.31136847]
[1641062310855,3.03409842,3745.3,3744.8,0.6676018]
[1641062311056,3.03409842,3745.4,3744.9,3.3529143]
[1641062311262,3.03409842,3745.4,3744.9,2.99448908]
[1641062311460,0.69722901,3745.5,3745.0,0.00852635]
[1641062311661,0.69722901,3745.5,3745.0,0.39152635]
[1641062311960,0.69722901,3745.5,3745.1,0.00795793]
[1641062312160,0.69722901,3745.5,3745.1,2.01033643]
[1641062312365,0.69722901,3745.5,3745.1,1.64287643]
[1641062312561,0.69722901,3745.5,3745.3,0.66746]
[1641062312763,1.32094888,3746.3,3745.4,6.633]
[1641062312963,1.32094888,3746.2,3745.4,6.63925266]
[1641062313165,1.32094888,3746.2,3745.8,15.6]
[1641062313363,1.78684138,3746.5,3746.0,6.25]
[1641062313567,1.78684138,3746.5,3746.1,0.383]
[1641062313770,0.00113685,3746.7,3746.2,1.5365554]
[1641062313967,0.00113685,3746.7,3746.3,15.983]
[1641062314203,0.00113685,3746.7,3746.4,15.6]
[1641062314403,0.00113685,3746.7,3746.5,0.383]
[1641062314603,0.00113685,3746.7,3746.5,0.683]
[1641062315004,0.00113685,3746.7,3746.5,2.0173961]
[1641062315406,0.00113685,3746.7,3746.6,2.9650083]
[1641062316006,0.00113685,3746.7,3746.6,3.3480083]
[1641062316209,0.00113685,3746.7,3746.6,3.0480083]
[1641062316412,0.00113685,3746.7,3746.6,0.383]
[1641062317211,2.70113685,3746.7,3746.6,0.383]
[1641062326947,2.70113685,3746.7,3746.3,1.63544185]
[1641062327248,2.70113685,3746.7,3746.3,1.93544185]
[1641062327648,2.70113685,3746.7,3746.4,0.66733]
[1641062329052,3.034044,3746.6,3746.4,0.66733]
[1641062329307,3.034044,3746.6,3746.4,2.75117899]
[1641062329704,3.034044,3746.6,3746.4,0.66733]
[1641062330307,3.034044,3746.6,3746.4,3.7442434]
[1641062330606,3.034044,3746.6,3746.5,2.51874781]
[1641062330906,3.034044,3746.6,3746.5,3.11874781]
[1641062332108,3.034044,3746.6,3746.5,4.50174781]
[1641062332406,1.32359807,3747.3,3746.6,6.25]
[1641062332606,1.32359807,3747.3,3747.1,0.66704]
[1641062332962,1.32359807,3747.3,3747.2,0.383]
[1641062333161,1.32359807,3748.1,3747.2,0.683]
[1641062333360,0.00341054,3747.3,3747.2,0.983]
[1641062333561,0.00341054,3747.3,3747.2,16.583]
[1641062333762,0.00341054,3747.3,3747.2,0.983]
[1641062334362,0.00341054,3747.3,3747.2,3.75957157]
[1641062334564,0.00341054,3747.3,3747.2,4.75957157]
[1641062336262,0.00341054,3747.3,3747.2,3.75957157]
[1641062337409,2.70341054,3747.3,3747.2,3.75957157]
[1641062338715,2.70341054,3747.3,3747.2,0.983]
[1641062339417,2.70341054,3747.3,3747.2,3.42297438]
[1641062340858,2.70341054,3747.3,3747.2,4.42297438]
[1641062342961,2.70341054,3747.3,3747.2,20.02297438]
[1641062344211,2.70341054,3747.3,3747.2,4.42297438]
[1641062345216,2.70341054,3747.3,3747.2,4.42814083]
[1641062345415,2.70341054,3747.3,3747.2,1.983]
[1641062346016,2.70341054,3747.3,3747.2,4.42860798]
[1641062346216,2.70341054,3747.3,3747.2,1.983]
[1641062346418,2.70341054,3747.3,3747.2,4.42860798]
[1641062347217,2.70341054,3747.3,3747.2,1.983]
[1641062347417,2.70341054,3747.3,3747.2,4.4332555]
[1641062347819,2.70341054,3747.3,3747.2,1.983]
[1641062348257,2.70341054,3747.3,3747.2,4.43908923]
[1641062348657,2.70341054,3747.3,3747.2,4.4318288]
[1641062349760,2.70341054,3747.3,3747.2,0.983]
[1641062349960,2.70341054,3747.3,3747.2,0.383]
[1641062359333,2.70341054,3747.3,3747.0,1.3344474]
[1641062359735,0.00284211,3747.2,3747.0,1.3344474]
[1641062360135,0.00227369,3747.1,3747.0,1.3344474]
[1641062362541,0.00227369,3747.1,3747.0,1.9344474]
[1641062373869,0.00227369,3747.1,3747.0,1.3344474]
[1641062374605,0.00227369,3747.1,3746.8,0.66729]
[1641062374804,0.00227369,3747.1,3746.5,0.05439909]
[1641062375005,0.00170527,3747.0,3746.5,0.05439909]
[1641062375208,0.00170527,3747.0,3746.3,3.3364036]
[1641062375406,0.00113684,3746.9,3746.3,3.3364036]
[1641062375606,0.00113684,3746.9,3746.4,0.00170527]
[1641062375810,0.00227369,3747.1,3746.4,0.00170527]
[1641062376206,0.00170527,3747.0,3746.6,0.66731]
[1641062376607,0.00113684,3746.9,3746.7,0.6673067]
[1641062377006,0.00227369,3747.1,3746.7,0.6673067]
[1641062377208,0.00227369,3747.1,3746.4,0.00170527]
[1641062377408,0.00170527,3747.0,3746.4,0.00170527]
[1641062377608,0.00170527,3747.0,3746.3,0.66739]
[1641062377807,0.00113684,3746.9,3746.3,0.66739]
[1641062378069,0.00227369,3747.1,3746.3,0.66739]
[1641062378373,0.00170527,3747.0,3746.3,0.66739]
[1641062378570,0.00170527,3747.0,3746.3,1.3347526]
[1641062378772,0.00113684,3746.9,3746.5,0.66735]
[1641062378970,0.00113684,3746.9,3746.6,0.75344585]
[1641062379169,0.00170527,3747.0,3746.6,0.75344585]
[1641062379369,0.00170527,3747.0,3746.2,2.46183439]
[1641062379571,0.00113684,3746.9,3746.2,0.30284212]
[1641062379771,0.00113684,3746.9,3746.3,0.0022737]
[1641062379973,0.00227369,3747.1,3746.3,0.0022737]
[1641062380173,0.00146331,3746.9,3746.5,1.3345191]
[1641062380376,0.00146331,3746.9,3746.6,0.6672961]
[1641062381272,3.034853,3746.9,3746.6,0.6672961]
[1641062381921,0.00146331,3746.9,3746.6,0.6672961]
[1641062382622,3.034853,3746.9,3746.6,1.3346061]
[1641062383026,0.00146331,3746.9,3746.6,1.3346061]
[1641062383430,3.034853,3746.9,3746.6,1.3346061]
[1641062383826,0.00146331,3746.9,3746.6,1.3346061]
[1641062384425,3.034853,3746.9,3746.6,1.3346061]
[1641062385027,0.00146331,3746.9,3746.6,1.3346061]
[1641062385880,3.0354372,3746.9,3746.6,1.3346061]
[1641062386480,0.00146331,3746.9,3746.6,1.3346061]
[1641062386884,0.00146331,3746.9,3746.6,1.2846061]
[1641062387081,3.0354372,3746.9,3746.6,1.2846061]
[1641062387283,3.0354372,3746.9,3746.4,0.66736]
[1641062387481,3.0354372,3746.9,3746.3,1.3346009]
[1641062387682,3.0354372,3746.9,3746.5,0.00113685]
[1641062388485,3.0354372,3746.9,3746.5,0.66846715]
[1641062389407,3.0354372,3746.9,3746.5,1.33580715]
[1641062391818,3.0354372,3746.9,3746.6,1.3346303]
[1641062399627,3.0354372,3746.9,3746.6,2.0019103]
[1641062400482,3.0354372,3746.9,3746.6,2.6692003]
[1641062401380,2.9354372,3746.9,3746.6,2.6692003]
[1641062401582,0.00170527,3747.0,3746.8,0.6672704]
[1641062401983,0.00113684,3746.9,3746.8,0.6672704]
[1641062402580,0.00113684,3746.9,3746.8,0.9672704]
[1641062402781,0.00113684,3746.9,3746.8,4.23889029]
[1641062402980,0.00113684,3746.9,3746.8,5.23889029]
[1641062403381,0.00113684,3746.9,3746.8,20.83889029]
[1641062404417,0.00113684,3746.9,3746.8,5.23889029]
[1641062410288,0.00113684,3746.9,3746.8,3.63889029]
[1641062411485,0.00113684,3746.9,3746.8,4.23889029]
[1641062412720,0.00113684,3746.9,3746.8,5.23889029]
[1641062413719,0.00113684,3746.9,3746.8,4.23889029]
[1641062413920,0.00113684,3746.9,3746.8,3.63889029]
[1641062414119,0.00113684,3746.9,3746.8,4.23889029]
[1641062415119,0.00113684,3746.9,3746.8,3.93889029]
[1641062415574,0.00113684,3746.9,3746.8,1.3502704]
[1641062416173,0.00113684,3746.9,3746.8,3.47175757]
[1641062416373,0.00113684,3746.9,3746.8,1.0502704]
[1641062421115,0.00113684,3746.9,3746.8,0.6672704]
[1641062421514,0.00244355,3746.9,3746.8,0.6672704]
[1641062432271,0.00130671,3746.9,3746.8,0.6672704]
[1641062440869,0.00130671,3746.9,3746.8,8.71773997]
[1641062441070,0.00130671,3746.9,3746.8,5.05073997]
[1641062442110,0.00130671,3746.9,3746.8,1.6502704]
[1641062448179,0.00130671,3746.9,3746.8,1.0502704]
[1641062450622,0.00130671,3746.9,3746.8,1.6502704]
[1641062460326,0.00130671,3746.9,3746.8,4.06307592]
[1641062460570,0.00130671,3746.9,3746.8,5.06307592]
[1641062460770,0.00130671,3746.9,3746.8,20.66307592]
[1641062460971,3.03348792,3747.2,3746.9,4.1]
[1641062461270,3.03348792,3747.2,3747.1,0.66705]
[1641062461476,3.03348792,3747.2,3747.1,1.05005]
[1641062461669,3.03633003,3747.2,3747.1,1.35005]
[1641062462470,3.03633003,3747.2,3747.1,2.35005]
[1641062462671,3.03633003,3747.2,3747.1,5.00354294]
[1641062462871,3.03633003,3747.2,3747.1,4.00354294]
[1641062463475,0.00284211,3747.2,3747.1,4.00354294]
[1641062464079,3.03611216,3747.2,3747.1,4.00354294]
[1641062464710,0.00284211,3747.2,3747.1,4.00354294]
[1641062465316,0.00284211,3747.2,3747.1,19.60354294]
[1641062473429,0.00389406,3747.2,3747.1,19.60354294]
[1641062476468,0.00389406,3747.2,3747.1,16.95005]
[1641062479926,2.7,3747.3,3747.1,16.95005]
[1641062480126,0.69673851,3747.7,3747.1,16.95005]
[1641062480127,0.69673851,3747.7,3747.4,1.3339772]
[1641062480326,1.32359807,3748.4,3747.6,15.6]
[1641062480525,1.32359807,3748.4,3747.7,9.45282266]
[1641062480725,1.32359807,3748.4,3747.9,15.6]
[1641062480924,6.33707326,3748.7,3748.2,5.25]
[1641062481123,6.33707326,3748.7,3748.4,16.26679]
[1641062481326,0.00795793,3748.6,3748.5,0.383]
[1641062482529,0.00795793,3748.6,3748.5,2.79226149]
[1641062483974,0.00906503,3748.6,3748.5,2.79226149]
[1641062490227,2.70906503,3748.6,3748.5,3.79226149]
[1641062490466,2.70906503,3748.6,3748.5,19.39226149]
[1641062490668,0.05439679,3749.3,3748.7,16.26669]
[1641062490868,0.05439679,3749.3,3748.9,15.6]
[1641062491069,0.05439679,3749.3,3748.9,16.94969]
[1641062491274,0.0613,3749.6,3748.9,17.94969]
[1641062492169,0.46138543,3750.2,3748.9,17.94969]
[1641062492774,0.46138543,3750.2,3748.9,2.34969]
[1641062492775,0.0612,3750.1,3748.9,2.34969]
[1641062494414,0.0612,3750.1,3748.9,1.04969]
[1641062494617,0.67037252,3749.0,3748.9,0.66669]
[1641062494817,0.67037252,3749.0,3748.7,0.66669]
[1641062495117,0.00170527,3748.9,3748.2,1.33385]
[1641062495317,0.00170527,3748.9,3748.2,2.00087]
[1641062495514,0.67037252,3749.0,3748.3,0.00170527]
[1641062495515,0.00113685,3748.8,3748.3,0.00170527]
[1641062496215,0.00113685,3748.8,3748.3,0.66868527]
[1641062496617,0.00113685,3748.8,3748.4,0.00113685]
[1641062497416,0.00113685,3748.8,3748.4,0.66804685]
[1641062497619,0.00113685,3748.8,3748.5,0.6668707]
[1641062497819,0.00113685,3748.8,3748.5,1.6337507]
[1641062498073,0.00113685,3748.8,3748.5,0.9668707]
[1641062498873,0.00113685,3748.8,3748.6,0.66689]
[1641062500480,0.00113685,3748.8,3748.5,0.66689]
[1641062501279,0.00113685,3748.8,3748.4,0.00113685]
[1641062503528,0.00113685,3748.8,3748.5,0.66694]
[1641062504929,0.69646661,3748.7,3748.5,0.66694]
[1641062505472,0.69745662,3748.7,3748.5,0.66694]
[1641062511518,3.03271594,3748.6,3748.5,0.66694]
[1641062516173,3.03271594,3748.6,3748.4,0.00113685]
[1641062520030,3.03271594,3748.6,3748.5,0.646916]
[1641062525936,3.03271594,3748.6,3748.5,1.313856]
[1641062530393,3.03271594,3748.6,3748.5,1.263856]
[1641062532820,3.02971594,3748.6,3748.5,1.263856]
[1641062534832,2.56111594,3748.6,3748.5,10.9584313]
[1641062535030,0.66934099,3749.0,3748.6,6.25]
[1641062535228,0.66934099,3749.0,3748.8,1.33334]
[1641062535471,0.66934099,3749.0,3748.9,6.583]
[1641062535672,0.66934099,3749.0,3748.9,9.7275753]
[1641062535973,0.66934099,3749.0,3748.9,26.3275753]
[1641062535974,0.67161469,3749.0,3748.9,26.3275753]
[1641062536374,1.32989148,3750.0,3748.9,26.3275753]
[1641062536375,1.32989148,3750.0,3749.9,1.48244631]
[1641062536974,1.32989148,3750.2,3749.9,0.66665]
[1641062537175,1.32989148,3750.2,3749.7,1.63328]
[1641062537374,0.00625265,3750.1,3749.9,0.66672]
[1641062537877,0.00568423,3750.0,3749.7,1.33347]
[1641062538077,0.00568423,3750.0,3749.6,0.0541061]
[1641062538278,0.00511581,3749.9,3749.6,0.0541061]
[1641062538479,0.00511581,3749.9,3749.6,0.0081761]
[1641062538778,0.00454738,3749.8,3749.6,0.0081761]
[1641062538977,0.00454738,3749.8,3749.6,0.3081761]
[1641062539221,0.00397896,3749.7,3749.6,1.26674]
[1641062545303,0.00397896,3749.7,3749.6,3.73171461]
[1641062546204,0.00397896,3749.7,3749.6,1.26674]
[1641062547825,0.00397896,3749.7,3749.6,3.70269114]
[1641062548026,0.00397896,3749.7,3749.6,3.74548273]
[1641062548227,0.00397896,3749.7,3749.6,1.26674]
[1641062551272,0.00397896,3749.7,3749.0,0.2273761]
[1641062551472,0.00397896,3749.7,3748.9,2.05984]
[1641062551473,0.00397896,3749.7,3748.9,0.0598]
[1641062551671,0.00341054,3749.6,3748.6,1.7744]
[1641062552072,0.00284211,3749.5,3748.7,0.00170528]
[1641062552475,0.1653,3750.2,3748.7,0.00170528]
[1641062552476,0.00227369,3749.4,3748.9,0.66689]
[1641062552872,0.00170527,3749.3,3748.9,0.66689]
[1641062553276,0.00113684,3749.2,3748.9,0.66689]
[1641062553676,0.00397896,3749.7,3748.9,0.66689]
[1641062554076,0.00341054,3749.6,3748.9,0.66689]
[1641062554338,0.00397896,3749.7,3748.9,0.66689]
[1641062554538,0.00284211,3749.5,3749.0,0.66687]
[1641062554735,0.00341054,3749.6,3749.0,0.66687]
[1641062554935,0.00227369,3749.4,3749.0,0.66687]
[1641062555139,0.00284211,3749.5,3749.0,0.66687]
[1641062555334,0.00170527,3749.3,3749.0,0.66687]
[1641062555535,0.00227369,3749.4,3749.0,0.66687]
[1641062555736,0.00113684,3749.2,3748.8,1.3338]
[1641062555936,0.00170527,3749.3,3748.8,0.66689]
[1641062556138,4.37108561,3749.9,3748.8,0.66689]
[1641062556339,0.00113684,3749.2,3748.8,0.66689]
[1641062556540,0.00454738,3749.8,3748.8,0.66689]
[1641062556738,0.00092742,3749.2,3748.8,0.66689]
[1641062556940,0.00092742,3749.2,3748.8,1.48281265]
[1641062557539,0.00092742,3749.2,3748.9,0.6669]
[1641062558982,0.00092742,3749.2,3748.7,0.66863528]
[1641062559179,0.69641533,3749.1,3748.7,0.96863528]
[1641062559379,0.69641533,3749.1,3748.8,0.00113685]
[1641062560281,0.69641533,3749.1,3748.8,0.66804685]
[1641062561579,0.69641533,3749.1,3748.8,0.61804685]
[1641062567379,0.00091559,3749.0,3748.8,0.61804685]
[1641062569429,3.03327211,3749.0,3748.8,1.28493685]
[1641062572838,0.00091559,3749.0,3748.8,1.28493685]
[1641062574279,0.00091559,3749.0,3748.8,1.95180785]
[1641062575479,0.00091559,3749.0,3748.8,1.28493685]
[1641062576082,1.05377013,3749.1,3748.8,1.28493685]
[1641062576281,0.64733092,3749.1,3748.8,1.28493685]
[1641062576721,1.04332179,3749.1,3748.8,1.28493685]
[1641062578025,0.00081386,3749.0,3748.8,1.28493685]
[1641062578629,25.79856026,3748.9,3748.8,0.00113685]
[1641062578827,26.24747769,3748.9,3748.8,0.00113685]
[1641062579029,26.24747769,3748.9,3748.1,0.22741518]
[1641062579030,6.25,3748.7,3748.1,0.22741518]
[1641062579227,3.13845562,3748.6,3748.1,0.22741518]
[1641062579428,6.25,3748.4,3747.4,3.61076006]
[1641062579626,6.25,3748.4,3746.2,6.04247464]
[1641062579627,0.66733,3748.0,3746.4,1.06860736]
[1641062579830,0.66733,3748.0,3747.8,0.0022737]
[1641062580128,6.354,3747.9,3746.1,0.0119369]
[1641062580329,0.6673263,3747.4,3746.1,0.0119369]
[1641062580584,0.6173263,3747.4,3746.1,0.0119369]
[1641062580989,4.48234363,3747.4,3746.1,1.03909414]
[1641062581386,3.03302656,3747.3,3746.2,0.01136847]
[1641062582584,2.89302272,3747.2,3746.2,0.01136847]
[1641062582784,3.03302656,3747.3,3746.2,0.01136847]
[1641062583390,3.82988596,3747.4,3746.2,0.01136847]
[1641062583991,2.7,3747.3,3746.2,0.01136847]
[1641062587735,2.7,3747.3,3746.2,0.67866847]
[1641062587975,2.89018508,3747.2,3746.2,0.67866847]
[1641062588180,2.89018508,3747.2,3746.3,0.01080005]
[1641062588384,2.7,3747.3,3746.3,0.01080005]
[1641062588785,2.884355,3747.2,3746.3,0.01080005]
[1641062589182,3.36735,3747.3,3746.3,0.01080005]
[1641062589380,1.0,3747.2,3746.3,0.01080005]
[1641062589583,1.0,3747.2,3746.2,0.01136847]
[1641062589781,1.0,3747.2,3746.0,0.01250532]
[1641062590781,3.36735,3747.3,3746.0,0.01250532]
[1641062591386,2.92246938,3747.2,3746.0,0.01250532]
[1641062592729,4.03473,3747.3,3746.0,0.01250532]
[1641062593134,4.03473,3747.3,3746.0,0.67984502]
[1641062593533,4.03473,3747.3,3746.1,0.0119369]
[1641062594733,3.63676386,3747.2,3746.1,0.0119369]
[1641062595134,0.66739,3747.1,3746.1,0.0119369]
[1641062595580,2.92677096,3747.0,3746.1,0.0119369]
[1641062595782,0.66739,3747.1,3746.0,0.01250532]
[1641062595987,2.86577308,3747.0,3746.0,0.01250532]
[1641062596682,0.66739,3747.1,3746.0,0.01250532]
[1641062597083,2.91377729,3747.0,3746.0,0.01250532]
[1641062597684,0.66739,3747.1,3746.0,0.01250532]
[1641062598991,0.66870358,3747.1,3746.0,0.01250532]
[1641062599429,0.66870358,3747.1,3746.0,0.67985972]
[1641062599627,0.00131358,3747.1,3746.0,0.67985972]
[1641062599826,0.00131358,3747.1,3746.1,0.0119369]
[1641062600030,0.00131358,3747.1,3746.1,0.3119369]
[1641062600426,0.00131358,3747.1,3746.2,0.01136847]
[1641062600627,0.00131358,3747.1,3746.2,0.67869847]
[1641062600833,0.00131358,3747.1,3746.2,0.66733]
[1641062601031,0.00131358,3747.1,3746.3,0.01080005]
[1641062601534,0.00131358,3747.1,3746.0,0.01250532]
[1641062602736,0.66870358,3747.1,3746.0,0.67986512]
[1641062603187,0.66870358,3747.1,3746.1,0.0119369]
[1641062604792,2.87644363,3747.0,3746.1,0.0119369]
[1641062604992,0.66870358,3747.1,3746.1,0.0119369]
[1641062606394,4.36387733,3747.0,3746.1,0.0119369]
[1641062609633,0.00130769,3746.9,3746.1,0.0119369]
[1641062611992,1.33119917,3746.9,3746.1,0.0119369]
[1641062614930,1.33119917,3746.9,3746.2,0.6673506]
[1641062615331,1.33119917,3746.9,3746.3,0.01080005]
[1641062617035,0.00130769,3746.9,3746.3,0.01080005]
[1641062617238,1.33119917,3746.9,3746.3,0.01080005]
[1641062617437,0.00130769,3746.9,3746.3,0.01080005]
[1641062618297,2.98529354,3747.0,3746.3,0.01080005]
[1641062618495,4.24751456,3747.1,3746.3,0.01080005]
[1641062619296,0.66739,3747.1,3746.3,0.01080005]
[1641062619495,3.52949205,3747.1,3746.3,0.01080005]
[1641062619694,0.66739,3747.1,3746.3,0.01080005]
[1641062619897,3.53871166,3747.1,3746.3,0.01080005]
[1641062620096,0.00118023,3747.0,3746.3,0.01080005]
[1641062620495,0.00118023,3747.0,3746.3,0.67814005]
[1641062620894,0.00118023,3747.0,3746.4,0.01023162]
[1641062624533,0.00118023,3747.0,3746.1,0.0119369]
[1641062625336,0.00118023,3747.0,3746.4,0.66734]
[1641062625588,0.00118023,3747.0,3746.3,0.6673313]
[1641062625785,0.00118023,3747.0,3746.5,0.0096632]
[1641062626086,0.00118023,3747.0,3746.4,0.01023162]
[1641062627292,0.00118023,3747.0,3746.4,1.34487452]
[1641062627693,0.00118023,3747.0,3746.5,0.0096632]
[1641062628495,0.00118023,3747.0,3746.1,0.6792369]
[1641062628896,0.00118023,3747.0,3746.2,0.01136847]
[1641062629430,0.00118023,3747.0,3746.5,0.66731]
[1641062629632,0.00118023,3747.0,3746.2,0.01136847]
[1641062629633,0.00118023,3747.0,3746.6,0.6672964]
[1641062629831,0.00118023,3747.0,3746.6,0.67639118]
[1641062630033,0.00118023,3747.0,3746.7,0.00852635]
[1641062631732,0.4098435,3747.0,3746.7,0.00852635]
[1641062633195,0.4098435,3747.0,3746.7,1.34307815]
[1641062633596,0.4098435,3747.0,3746.8,0.00795793]
[1641062633999,4.96082227,3747.0,3746.5,0.0096632]
[1641062634195,4.96082227,3747.0,3746.4,0.01023162]
[1641062635096,0.66737,3746.9,3746.4,0.01023162]
[1641062638548,3.0340638,3746.8,3746.4,0.01023162]
[1641062638948,3.73095895,3746.8,3746.4,0.01023162]
[1641062640151,3.0340638,3746.7,3746.4,0.01023162]
[1641062640356,6.51635904,3746.7,3746.4,0.01023162]
[1641062640610,6.61875904,3746.7,3746.4,0.01023162]
[1641062640805,1.1016,3746.6,3746.1,0.0119369]
[1641062641006,1.1016,3746.6,3745.4,0.0604]
[1641062641007,1.0,3746.6,3745.5,0.01534744]
[1641062641209,3.1356638,3746.7,3745.5,0.01534744]